bitfinex/quotes_SOLUSD_20260109
["timestamp","ask_amount","ask_price","bid_price","bid_amount"]
[1767930649314,12.96,140.8,140.77,0.65956879]
[1767930649910,15.12869621,140.8,140.76,0.85956879]
[1767930650407,15.12869621,140.8,140.77,0.65956879]
[1767930650604,2.16869621,140.82,140.78,0.65956879]
[1767930650906,35.48616039,140.9,140.78,2.828265]
[1767930651108,2.16869621,140.85,140.8,0.65956879]
[1767930651295,15.12869621,140.84,140.8,0.65956879]
[1767930652114,22.22895925,140.84,140.8,0.65956879]
[1767930652613,20.06026304,140.84,140.8,0.65956879]
[1767930653317,22.22895925,140.84,140.8,0.65956879]
[1767930653698,22.22895925,140.84,140.79,7.76222716]
[1767930653902,15.12869621,140.84,140.8,0.65956879]
[1767930654605,15.12869621,140.84,140.79,7.76222716]
[1767930654915,22.22920197,140.84,140.79,0.65956879]
[1767930655293,22.22920197,140.84,140.8,13.3]
[1767930656121,22.22920197,140.84,140.8,13.95956879]
[1767930657012,2.16869621,140.81,140.8,13.3]
[1767930658019,15.12869621,140.81,140.78,0.65956879]
[1767930658703,15.12869621,140.81,140.77,62.1]
[1767930658898,2.16869621,140.8,140.77,62.1]
[1767930659707,2.16869621,140.8,140.77,62.75956879]
[1767930660926,15.12869621,140.81,140.77,62.75956879]
[1767930661138,12.96,140.81,140.77,69.8630973]
[1767930661421,15.12869621,140.82,140.78,0.65956879]
[1767930662533,22.2299835,140.82,140.78,0.65956879]
[1767930663224,15.12869621,140.84,140.79,0.68688329]
[1767930663400,15.12869621,140.84,140.8,0.68688329]
[1767930663401,2.16869621,140.83,140.8,0.68688329]
[1767930664508,2.16869621,140.82,140.79,62.1]
[1767930664821,7.10105489,140.83,140.78,62.78688329]
[1767930664822,2.16869621,140.81,140.78,62.78688329]
[1767930665527,2.16869621,140.8,140.78,62.1]
[1767930665720,2.16869621,140.79,140.78,62.1]
[1767930666210,2.16869621,140.8,140.78,62.1]
[1767930666411,9.27113095,140.8,140.78,62.1]
[1767930669026,9.27113095,140.8,140.76,62.3]
[1767930670129,2.16869621,140.79,140.76,62.3]
[1767930672534,3.39452452,140.79,140.76,62.3]
[1767930674036,3.39452452,140.79,140.76,63.00129979]
[1767930674342,3.39452452,140.78,140.76,62.3]
[1767930675018,16.35452452,140.78,140.76,63.00129979]
[1767930677131,16.35452452,140.78,140.74,0.70129979]
[1767930677132,3.39452452,140.77,140.74,0.70129979]
[1767930677430,3.39452452,140.76,140.74,0.70129979]
[1767930678220,3.39452452,140.77,140.74,0.70129979]
[1767930679035,10.49838131,140.77,140.74,0.70129979]
[1767930679637,10.49838131,140.77,140.72,70.10729134]
[1767930679841,10.49838131,140.77,140.72,62.3]
[1767930680025,3.39452452,140.76,140.73,0.70129979]
[1767930680346,10.49904648,140.76,140.73,0.70129979]
[1767930681522,16.35452452,140.75,140.72,0.2]
[1767930682027,16.35452452,140.75,140.72,0.90129979]
[1767930682028,23.45950272,140.75,140.72,0.90129979]
[1767930682338,23.45950272,140.75,140.73,0.70129979]
[1767930682538,23.45950272,140.75,140.72,0.2]
[1767930682539,3.39452452,140.74,140.7,0.70129979]
[1767930682725,37.82696754,140.75,140.7,0.70129979]
[1767930683050,3.39452452,140.72,140.7,0.70129979]
[1767930683225,12.96,140.72,140.7,0.70129979]
[1767930683817,16.35452452,140.72,140.7,0.70129979]
[1767930684019,16.35452452,140.72,140.69,0.2]
[1767930684020,23.46112538,140.72,140.69,0.90129979]
[1767930685648,20.06660086,140.72,140.69,0.90129979]
[1767930685845,23.46112538,140.72,140.69,0.90129979]
[1767930686746,23.46112538,140.72,140.7,0.70129979]
[1767930687048,12.96,140.72,140.7,0.70129979]
[1767930687929,3.39452452,140.75,140.71,0.70129979]
[1767930688137,16.35452452,140.75,140.71,0.70129979]
[1767930688428,10.49895436,140.76,140.72,0.70129979]
[1767930688643,12.96,140.75,140.72,0.70129979]
[1767930689040,16.35452452,140.75,140.72,0.70129979]
[1767930689437,18.45093449,140.78,140.72,0.70129979]
[1767930689635,3.39452452,140.79,140.75,0.70129979]
[1767930691849,10.49738641,140.79,140.75,0.70129979]
[1767930692054,3.39452452,140.78,140.75,0.70129979]
[1767930692245,10.49738641,140.79,140.75,0.70129979]
[1767930692744,7.10286189,140.79,140.75,0.70129979]
[1767930693044,3.39452452,140.78,140.75,0.70129979]
[1767930694051,24.1276745,140.79,140.75,0.70129979]
[1767930695443,24.1276745,140.79,140.75,62.80129979]
[1767930696345,24.1276745,140.79,140.76,0.68554048]
[1767930699062,20.73314998,140.79,140.76,0.68554048]
[1767930700054,24.1276745,140.79,140.76,0.68554048]
[1767930701152,20.73314998,140.79,140.76,0.68554048]
[1767930701340,24.1276745,140.79,140.76,0.68554048]
[1767930703057,3.39452452,140.78,140.76,0.68554048]
[1767930703364,24.1276745,140.79,140.76,0.68554048]
[1767930703750,3.39452452,140.78,140.76,0.68554048]
[1767930704734,3.39452452,140.78,140.72,17.765776]
[1767930704735,0.67028809,140.76,140.72,0.68554048]
[1767930704935,4.06481261,140.75,140.72,0.68554048]
[1767930705151,0.67028809,140.75,140.72,0.68554048]
[1767930705343,12.96,140.76,140.72,0.68554048]
[1767930705935,12.96,140.76,140.73,0.68554048]
[1767930706144,13.63028809,140.76,140.73,0.68554048]
[1767930707748,13.63028809,140.76,140.71,0.68554048]
[1767930707749,4.06481261,140.75,140.71,0.68554048]
[1767930707956,4.06481261,140.75,140.71,0.18554048]
[1767930708149,0.67028809,140.75,140.71,0.18554048]
[1767930708349,4.06481261,140.75,140.71,0.18554048]
[1767930709060,11.16977208,140.75,140.71,0.18554048]
[1767930709451,0.67028809,140.74,140.69,0.2]
[1767930709638,4.06481261,140.72,140.69,0.2]
[1767930710264,0.67028809,140.72,140.69,0.88554048]
[1767930710644,13.63028809,140.73,140.69,0.88554048]
[1767930712351,20.73609574,140.73,140.69,0.88554048]
[1767930713240,24.13062026,140.73,140.69,0.88554048]
[1767930713443,0.67028809,140.72,140.69,0.88554048]
[1767930713966,0.67028809,140.72,140.69,0.2]
[1767930715064,24.13062026,140.73,140.69,0.88554048]
[1767930715765,3.39452452,140.72,140.69,0.88554048]
[1767930716348,10.50090914,140.72,140.69,0.88554048]
[1767930718255,11.17119723,140.72,140.69,0.2]
[1767930718861,10.50090914,140.72,140.69,0.2]
[1767930720560,12.96,140.73,140.7,0.68554048]
[1767930721268,17.76198934,140.75,140.71,0.225]
[1767930721269,16.35452452,140.75,140.71,0.225]
[1767930721756,17.02481261,140.75,140.71,0.225]
[1767930722173,0.67028809,140.74,140.7,3.39452452]
[1767930722370,4.06481261,140.74,140.69,10.92729246]
[1767930722572,0.67028809,140.73,140.69,10.92729246]
[1767930722751,0.67028809,140.73,140.7,3.39452452]
[1767930722956,0.65573513,140.74,140.71,3.39452452]
[1767930723178,0.65573513,140.74,140.7,0.225]
[1767930723367,7.10382794,140.77,140.73,0.225]
[1767930723573,24.11408759,140.77,140.73,0.225]
[1767930724281,13.61573513,140.77,140.73,0.225]
[1767930724480,12.96,140.77,140.74,0.225]
[1767930724773,13.61573513,140.77,140.73,10.72522521]
[1767930725074,0.65573513,140.77,140.73,10.72522521]
[1767930726280,0.65573513,140.77,140.73,7.33070069]
[1767930728878,0.6880827,140.76,140.71,7.33170746]
[1767930729177,0.6880827,140.75,140.71,10.72623198]
[1767930729476,0.6880827,140.76,140.72,3.61952452]
[1767930730575,0.6880827,140.76,140.72,10.72564731]
[1767930730777,0.6880827,140.76,140.73,3.39452452]
[1767930730969,0.6880827,140.76,140.72,10.72564731]
[1767930731563,11.18604669,140.78,140.73,0.225]
[1767930732257,0.6880827,140.77,140.73,0.225]
[1767930732460,0.6880827,140.77,140.73,3.61952452]
[1767930733082,0.6880827,140.77,140.73,0.225]
[1767930733382,0.6880827,140.77,140.72,10.72564731]
[1767930734581,0.6880827,140.77,140.72,9.50401]
[1767930736280,0.6880827,140.77,140.73,0.225]
[1767930736987,0.6880827,140.77,140.7,62.1]
[1767930736988,0.6880827,140.75,140.7,0.225]
[1767930737288,0.6880827,140.75,140.7,2.39788721]
[1767930737470,0.6880827,140.75,140.71,0.225]
[1767930737867,0.6880827,140.75,140.71,7.3317765]
[1767930738171,7.10378746,140.77,140.72,2.39788721]
[1767930738172,0.6880827,140.77,140.72,2.39788721]
[1767930738385,0.6880827,140.77,140.73,2.39788721]
[1767930738872,0.6880827,140.78,140.74,0.225]
[1767930739257,0.6880827,140.78,140.73,2.39788721]
[1767930739474,0.6880827,140.78,140.73,9.50354103]
[1767930741084,2.86096991,140.78,140.73,9.50354103]
[1767930741385,0.6880827,140.77,140.73,9.50354103]
[1767930742472,0.6880827,140.77,140.73,71.60354103]
[1767930742672,22.23582634,140.79,140.73,71.60354103]
[1767930742673,13.6480827,140.79,140.75,2.39788721]
[1767930742886,0.6880827,140.78,140.75,2.39788721]
[1767930743076,0.6880827,140.78,140.74,22.57802227]
[1767930743268,0.6880827,140.78,140.75,2.17288721]
[1767930743789,0.6880827,140.78,140.74,22.80302227]
[1767930745173,13.6480827,140.79,140.75,2.39788721]
[1767930745675,0.6880827,140.78,140.74,20.63013506]
[1767930745883,0.6880827,140.78,140.74,13.525]
[1767930746390,0.6880827,140.78,140.74,15.69788721]
[1767930747272,0.6880827,140.78,140.74,22.80313088]
[1767930747990,0.6880827,140.78,140.75,2.17288721]
[1767930748374,0.6880827,140.78,140.75,64.27288721]
[1767930751276,0.6880827,140.77,140.74,13.525]
[1767930751480,0.6880827,140.77,140.74,13.3]
[1767930754177,2.88454319,140.76,140.74,13.3]
[1767930754383,0.71165598,140.75,140.72,0.225]
[1767930754584,2.88454319,140.76,140.72,0.225]
[1767930755002,0.71165598,140.74,140.7,71.60509219]
[1767930755379,0.71165598,140.74,140.71,7.10670067]
[1767930756085,0.71165598,140.75,140.71,9.50458788]
[1767930759106,0.71165598,140.75,140.7,69.43215869]
[1767930759283,0.71165598,140.75,140.71,0.225]
[1767930759691,0.71165598,140.75,140.71,7.33167853]
[1767930760003,0.71165598,140.75,140.71,69.43167853]
[1767930760300,0.71165598,140.75,140.71,71.60456574]
[1767930762621,0.71165598,140.75,140.71,69.43167853]
[1767930763314,0.71165598,140.75,140.71,62.325]
[1767930765816,0.71165598,140.75,140.71,62.1]
[1767930766226,0.71165598,140.74,140.71,62.1]
[1767930768821,0.71165598,140.74,140.71,69.20656449]
[1767930769214,0.71165598,140.74,140.71,69.43156449]
[1767930770721,0.71165598,140.74,140.71,62.325]
[1767930771499,0.71165598,140.74,140.71,62.1]
[1767930772525,2.88454319,140.74,140.71,62.1]
[1767930773014,0.71165598,140.72,140.71,62.1]
[1767930773216,0.71165598,140.72,140.69,62.3]
[1767930773522,0.71165598,140.72,140.69,62.525]
[1767930774218,12.96,140.73,140.69,69.63280632]
[1767930774522,13.67165598,140.73,140.69,71.80569353]
[1767930777899,20.06588837,140.73,140.69,0.2]
[1767930778216,2.17288721,140.72,140.69,0.2]
[1767930778420,20.06588837,140.73,140.69,0.89652578]
[1767930778610,22.23877558,140.73,140.69,0.89652578]
[1767930779098,22.23877558,140.73,140.69,0.2]
[1767930779913,0.71165598,140.72,140.69,0.2]
[1767930782405,15.13288721,140.73,140.69,0.89652578]
[1767930783427,15.13288721,140.73,140.69,62.99652578]
[1767930783818,12.96,140.73,140.69,62.99652578]
[1767930784010,15.13288721,140.73,140.69,62.99652578]
[1767930784222,15.10288722,140.73,140.69,62.99652578]
[1767930784410,15.80744455,140.73,140.69,62.99652578]
[1767930784605,0.70455733,140.72,140.69,62.99652578]
[1767930789332,13.64458227,140.73,140.69,8.00428505]
[1767930789726,13.64458227,140.73,140.7,0.69570763]
[1767930791524,0.68458227,140.72,140.69,7.30775927]
[1767930791724,15.13288721,140.73,140.69,8.0034669]
[1767930792037,15.13288721,140.73,140.7,0.69570763]
[1767930792832,12.96,140.73,140.7,0.69570763]
[1767930793031,15.13288721,140.73,140.7,0.69570763]
[1767930793634,13.64458227,140.73,140.7,0.69570763]
[1767930793835,15.81746948,140.73,140.7,0.69570763]
[1767930794540,0.68458227,140.72,140.69,0.89570763]
[1767930795219,0.68458227,140.72,140.69,62.99570763]
[1767930796325,0.68458227,140.71,140.69,62.3]
[1767930796519,0.65458228,140.71,140.69,62.3]
[1767930797240,0.65458228,140.71,140.69,0.2]
[1767930797423,0.62458229,140.71,140.69,0.2]
[1767930800419,0.68458227,140.7,140.69,0.2]
[1767930800631,0.65458228,140.7,140.69,0.2]
[1767930803818,3.39735164,140.71,140.69,0.2]
[1767930804224,0.68458227,140.71,140.69,0.2]
[1767930805336,11.18908258,140.71,140.69,0.2]
[1767930809052,4.08193391,140.71,140.69,0.2]
[1767930812572,0.67428342,140.7,140.69,0.2]
[1767930812863,0.64428343,140.7,140.69,0.2]
[1767930815134,7.78024642,140.73,140.7,0.72495356]
[1767930815337,12.98,140.72,140.7,0.72495356]
[1767930815758,11.17759806,140.73,140.7,0.72495356]
[1767930816055,0.67428342,140.72,140.69,0.92495356]
[1767930817255,12.98,140.73,140.7,0.72495356]
[1767930817756,13.65428342,140.73,140.7,0.72495356]
[1767930818744,17.05163506,140.73,140.7,0.72495356]
[1767930819462,0.67428342,140.71,140.69,0.2]
[1767930819665,3.39735164,140.72,140.69,0.92495356]
[1767930821663,11.17800966,140.72,140.69,0.92495356]
[1767930822140,4.07163506,140.7,140.69,0.2]
[1767930822335,16.37735164,140.7,140.66,0.72495356]
[1767930822533,3.39735164,140.68,140.65,0.72495356]
[1767930822962,3.39735164,140.69,140.66,0.72495356]
[1767930823139,16.37735164,140.7,140.66,0.72495356]
[1767930823842,3.39735164,140.7,140.66,0.72495356]
[1767930824040,16.37735164,140.7,140.66,0.72495356]
[1767930824240,3.39735164,140.7,140.66,0.72495356]
[1767930824440,12.98,140.7,140.66,0.72495356]
[1767930824662,7.78052266,140.73,140.69,0.72495356]
[1767930824864,12.98,140.72,140.69,0.72495356]
[1767930826673,11.1778743,140.73,140.69,0.72495356]
[1767930826876,12.98,140.72,140.69,0.72495356]
[1767930827162,10.50359088,140.73,140.69,0.72495356]
[1767930827461,12.98,140.72,140.69,0.72495356]
[1767930828440,0.67428342,140.71,140.67,10.50600614]
[1767930828643,0.67428342,140.71,140.68,0.72495356]
[1767930829777,0.67428342,140.71,140.68,62.82495356]
[1767930831175,0.67428342,140.71,140.68,0.72495356]
[1767930832073,0.67428342,140.71,140.68,7.83320815]
[1767930834561,4.07163506,140.71,140.68,0.72495356]
[1767930834762,0.67428342,140.68,140.65,0.72495356]
[1767930834974,13.6242834,140.68,140.65,7.83475857]
[1767930835165,11.41228537,140.68,140.67,0.68165592]
[1767930835462,10.50436921,140.71,140.67,7.10877526]
[1767930835463,12.98,140.7,140.67,7.10877526]
[1767930837261,12.98,140.7,140.66,7.10934167]
[1767930838971,16.37735164,140.7,140.66,7.10934167]
[1767930839866,16.34735162,140.7,140.66,7.10934167]
[1767930840451,3.39735164,140.7,140.66,7.10934167]
[1767930840868,4.07163506,140.7,140.66,7.10934167]
[1767930841054,3.39735164,140.69,140.65,7.10966559]
[1767930841255,3.39735164,140.69,140.65,69.20966559]
[1767930841971,3.39735164,140.69,140.65,68.20966559]
[1767930842372,0.67428342,140.7,140.65,6.10966559]
[1767930842551,3.39735164,140.69,140.65,6.10966559]
[1767930843371,0.67428342,140.7,140.65,6.10966559]
[1767930843567,4.07163506,140.7,140.65,6.10966559]
[1767930847372,4.06944732,140.68,140.64,24.88515905]
[1767930847554,0.67209568,140.68,140.64,24.88515905]
[1767930847754,4.06944732,140.68,140.64,86.98515905]
[1767930848154,4.06944732,140.68,140.64,69.21035267]
[1767930849673,3.39735164,140.68,140.64,69.21035267]
[1767930849979,4.06944732,140.69,140.64,69.21035267]
[1767930852050,7.10736192,140.7,140.64,69.21035267]
[1767930852051,4.06944732,140.68,140.64,69.21035267]
[1767930853180,0.67209568,140.68,140.64,69.21035267]
[1767930853368,4.06944732,140.69,140.64,86.98623435]
[1767930853563,0.67209568,140.71,140.65,0.28432314]
[1767930853785,4.06944732,140.7,140.65,62.38432314]
[1767930853978,4.06944732,140.69,140.65,62.38432314]
[1767930855064,4.06944732,140.69,140.65,69.49381141]
[1767930855866,0.67209568,140.69,140.65,69.49381141]
[1767930856082,0.67209568,140.7,140.65,69.49381141]
[1767930856302,4.06944732,140.7,140.65,69.49381141]
[1767930856586,2.84749012,140.7,140.65,69.49381141]
[1767930856975,2.84749012,140.7,140.65,69.35164984]
[1767930857988,2.84749012,140.7,140.65,69.20948827]
[1767930858869,2.84749012,140.71,140.65,95.0461188]
[1767930859665,0.67209568,140.71,140.65,95.0461188]
[1767930859867,2.84749012,140.71,140.67,7.10883628]
[1767930860590,35.52370225,140.76,140.68,2.31755601]
[1767930860591,0.67209568,140.76,140.68,2.31755601]
[1767930860777,2.84749012,140.75,140.68,63.05971758]
[1767930861773,0.67209568,140.75,140.69,7.10782571]
[1767930861973,2.84749012,140.75,140.7,12.98]
[1767930862395,0.67209568,140.75,140.7,12.98]
[1767930862595,0.67209568,140.74,140.7,12.98]
[1767930862980,2.17539444,140.75,140.7,15.15539444]
[1767930862981,0.67209568,140.75,140.7,15.15539444]
[1767930863295,0.67209568,140.76,140.71,2.17539444]
[1767930863868,0.67209568,140.76,140.72,7.1063104]
[1767930864077,2.84749012,140.77,140.72,7.1063104]
[1767930864893,0.67209568,140.77,140.72,9.28170484]
[1767930865094,2.84749012,140.77,140.73,13.3]
[1767930867092,2.84749012,140.77,140.73,20.405655]
[1767930867293,0.67209568,140.79,140.73,82.505655]
[1767930867476,2.84749012,140.78,140.73,82.505655]
[1767930867889,20.08266384,140.8,140.74,0.28432314]
[1767930867890,0.67209568,140.8,140.74,0.28432314]
[1767930868092,2.84749012,140.8,140.74,2.45971758]
[1767930868299,2.84749012,140.79,140.74,2.45971758]
[1767930868798,2.84749012,140.79,140.74,0.28432314]
[1767930868995,2.84749012,140.79,140.74,2.45971758]
[1767930869194,2.84749012,140.79,140.75,7.10479573]
[1767930869380,0.67209568,140.79,140.75,20.08479573]
[1767930869991,0.67209568,140.79,140.75,22.26019017]
[1767930871408,0.77209568,140.86,140.78,2.17539444]
[1767930871584,0.67209568,140.82,140.77,2.17539444]
[1767930871779,0.67209568,140.8,140.78,12.98]
[1767930873088,0.67209568,140.8,140.77,7.10374472]
[1767930877286,0.67209568,140.8,140.77,69.20374472]
[1767930877986,2.84749012,140.8,140.77,69.20374472]
[1767930879002,0.67209568,140.8,140.77,69.20374472]
[1767930879192,2.84749012,140.8,140.77,69.20374472]
[1767930879392,0.67209568,140.8,140.77,69.20374472]
[1767930880200,2.89550325,140.81,140.77,69.20374472]
[1767930880389,0.72010881,140.81,140.77,69.20374472]
[1767930880707,0.72010881,140.82,140.77,71.37913916]
[1767930881502,0.72010881,140.82,140.78,2.17539444]
[1767930881700,0.72010881,140.82,140.79,7.10277718]
[1767930885310,0.72010881,140.82,140.78,69.20316596]
[1767930885508,2.89550325,140.82,140.78,69.20316596]
[1767930885701,0.72010881,140.82,140.78,69.20316596]
[1767930885909,2.89550325,140.82,140.78,69.20316596]
[1767930886087,0.72010881,140.82,140.78,69.20316596]
[1767930886693,2.89550325,140.81,140.77,69.2036981]
[1767930886898,2.89550325,140.8,140.76,20.06396186]
[1767930890819,0.72010881,140.8,140.76,20.06396186]
[1767930891613,0.72010881,140.81,140.76,22.2393563]
[1767930891908,0.72010881,140.81,140.76,84.3393563]
[1767930893291,0.72010881,140.81,140.77,9.27885629]
[1767930894321,0.72010881,140.81,140.77,7.10346185]
[1767930894535,0.72010881,140.82,140.77,9.27885629]
[1767930895695,0.72010881,140.84,140.77,24.86292764]
[1767930895900,2.89550325,140.84,140.78,2.17539444]
[1767930896095,0.72010881,140.83,140.78,2.17539444]
[1767930896307,2.89550325,140.83,140.77,89.13832208]
[1767930896507,2.89550325,140.84,140.78,2.17539444]
[1767930896897,0.72010881,140.82,140.77,89.13832208]
[1767930900518,0.72010881,140.82,140.77,99.92292764]
[1767930900519,0.72010881,140.81,140.77,99.92292764]
[1767930900817,0.69010881,140.81,140.77,99.92292764]
[1767930901396,0.69010881,140.81,140.77,99.95292764]
[1767930902320,0.66010881,140.81,140.77,99.95292764]
[1767930902517,2.17539444,140.81,140.77,69.20346185]
[1767930902822,2.17539444,140.81,140.77,82.16346185]
[1767930903420,2.17539444,140.82,140.77,82.16346185]
[1767930904134,0.65746575,140.81,140.77,82.16346185]
[1767930904630,0.65746575,140.81,140.77,82.22346185]
[1767930905000,0.65746575,140.81,140.77,75.12]
[1767930905211,0.65746575,140.8,140.77,75.06]
[1767930905404,0.62746575,140.8,140.77,75.06]
[1767930905815,2.17539444,140.81,140.77,82.25364085]
[1767930906630,2.17539444,140.82,140.77,82.25364085]
[1767930906933,24.84988266,140.85,140.77,82.25364085]
[1767930907233,2.17539444,140.82,140.77,82.25364085]
[1767930907415,0.71284897,140.81,140.77,82.25364085]
[1767930908724,0.71284897,140.81,140.77,82.16364085]
[1767930908907,0.68284897,140.81,140.77,82.16364085]
[1767930909108,0.68284897,140.81,140.77,84.45903529]
[1767930909307,0.68284897,140.81,140.77,82.28364085]
[1767930909511,17.75013116,140.85,140.79,0.12]
[1767930909512,7.10023336,140.85,140.79,0.12]
[1767930909827,2.17539444,140.84,140.79,0.12]
[1767930910633,2.17539444,140.84,140.79,7.2225455]
[1767930910923,2.88824341,140.83,140.79,0.12]
[1767930911930,2.88824341,140.83,140.79,7.2227058]
[1767930912231,2.88824341,140.83,140.79,0.12]
[1767930912411,0.71284897,140.82,140.79,0.12]
[1767930914414,0.71284897,140.81,140.78,62.1]
[1767930915911,0.71284897,140.81,140.78,69.20316648]
[1767930917727,0.71284897,140.81,140.78,62.1]
[1767930917913,0.47284897,140.81,140.78,62.1]
[1767930918624,10.49367894,140.83,140.78,69.56318558]
[1767930919329,10.49367894,140.83,140.79,0.36]
[1767930919840,0.71284897,140.82,140.79,0.36]
[1767930920338,0.71284897,140.83,140.8,0.36]
[1767930923149,0.71284897,140.83,140.79,7.46240724]
[1767930924235,4.10564744,140.84,140.8,0.36]
[1767930924432,0.71284897,140.83,140.8,0.36]
[1767930924641,0.71284897,140.83,140.79,69.20240724]
[1767930924944,0.71284897,140.83,140.79,69.56240724]
[1767930926533,0.71284897,140.83,140.79,72.95520571]
[1767930927147,0.71284897,140.83,140.8,20.40217272]
[1767930927446,0.71284897,140.84,140.8,20.76217272]
[1767930927745,0.71284897,140.85,140.82,0.36]
[1767930928134,4.20564744,140.86,140.82,0.36]
[1767930928334,0.71284897,140.85,140.81,65.85279847]
[1767930929045,0.71284897,140.85,140.81,62.46]
[1767930929251,0.71284897,140.84,140.81,62.46]
[1767930929743,0.71284897,140.85,140.82,0.36]
[1767930931841,0.71284897,140.85,140.81,69.56174871]
[1767930932442,4.16387886,140.86,140.82,7.46120599]
[1767930933040,4.16387886,140.86,140.82,69.56120599]
[1767930933246,0.67108039,140.85,140.82,69.56120599]
[1767930934452,0.67108039,140.85,140.82,69.20120599]
[1767930935954,0.67108039,140.85,140.82,62.1]
[1767930936755,0.1,140.86,140.83,0.36]
[1767930937535,0.77108039,140.86,140.83,0.36]
[1767930938955,0.77108039,140.86,140.83,62.46]
[1767930940360,0.67108039,140.85,140.83,62.1]
[1767930941067,0.57108039,140.83,140.8,13.3]
[1767930941236,0.57108039,140.84,140.8,14.00187109]
[1767930941435,0.57108039,140.84,140.8,13.3]
[1767930941659,3.39279847,140.81,140.8,13.3]
[1767930942163,0.099,140.82,140.8,13.3]
[1767930942458,3.49179847,140.82,140.8,13.3]
[1767930942750,0.099,140.82,140.8,13.3]
[1767930942956,3.49179847,140.82,140.8,13.3]
[1767930944737,3.39279847,140.81,140.8,13.3]
[1767930945137,3.36279847,140.81,140.8,13.3]
[1767930947849,3.33279845,140.81,140.8,13.3]
[1767930952048,3.49179847,140.82,140.8,13.3]
[1767930955071,0.099,140.82,140.8,13.3]
[1767930955273,3.49179847,140.82,140.8,13.3]
[1767930956472,0.56635958,140.81,140.8,13.3]
[1767930956866,3.96387886,140.82,140.8,13.3]
[1767930957170,0.099,140.81,140.8,13.3]
[1767930961172,0.099,140.81,140.77,13.66187109]
[1767930961173,0.56635958,140.8,140.77,13.66187109]
[1767930961374,0.53635957,140.8,140.77,13.66187109]
[1767930961571,3.39279847,140.81,140.77,13.66187109]
[1767930962081,3.39279847,140.82,140.78,0.70187109]
[1767930963373,0.54108038,140.82,140.78,0.70187109]
[1767930964355,0.53665957,140.8,140.77,13.66425484]
[1767930964675,0.53665957,140.8,140.77,12.96]
[1767930965257,0.53665957,140.8,140.77,13.66425484]
[1767930965583,0.1033766,140.79,140.75,0.70425484]
[1767930965760,3.49617507,140.79,140.75,0.70425484]
[1767930966276,3.49617507,140.79,140.76,0.70425484]
[1767930967671,3.92512521,140.78,140.74,7.78816193]
[1767930967863,3.89512521,140.78,140.74,7.78816193]
[1767930968281,3.89512521,140.78,140.75,0.68286138]
[1767930969161,0.50232674,140.78,140.75,0.68286138]
[1767930970380,11.00629202,140.8,140.75,0.68286138]
[1767930970763,0.51108038,140.8,140.76,0.68286138]
[1767930971185,0.51108038,140.8,140.76,62.78286138]
[1767930972178,3.90387885,140.8,140.76,62.78286138]
[1767930972482,3.90387885,140.8,140.77,0.68286138]
[1767930972667,3.90387885,140.8,140.77,62.78286138]
[1767930973673,0.1,140.86,140.8,0.68286138]
[1767930973878,0.1,140.86,140.83,0.68286138]
[1767930974181,3.39279847,140.84,140.81,0.68286138]
[1767930974384,3.88788116,140.84,140.81,0.68286138]
[1767930975065,0.49508269,140.84,140.81,0.68286138]
[1767930977275,3.90387885,140.85,140.81,0.68286138]
[1767930978266,0.1,140.88,140.85,0.68286138]
[1767930978479,0.1,140.89,140.88,0.68286138]
[1767930978679,0.1,140.91,140.88,0.68286138]
[1767930979684,0.1,140.91,140.9,0.68286138]
[1767930980271,0.1,140.92,140.9,0.68286138]
[1767930982585,0.1,140.93,140.92,0.68286138]
[1767930982972,0.1,140.93,140.92,0.62286138]
[1767930983171,0.1,140.93,140.9,2.16787349]
[1767930984176,0.1,140.93,140.89,9.26554182]
[1767930984390,0.1,140.93,140.87,30.70584994]
[1767930984597,0.1,140.93,140.9,2.16787349]
[1767930984796,0.6988877,140.97,140.92,2.16787349]
[1767930984988,2.86676119,140.97,140.93,0.68286138]
[1767930985180,2.86676119,140.98,140.94,0.68286138]
[1767930987897,2.86444702,140.96,140.91,0.68286138]
[1767930988195,2.86444702,140.96,140.92,0.68286138]
[1767930989797,9.95872185,140.96,140.92,0.68286138]
[1767930992384,17.73401875,140.98,140.92,0.68286138]
[1767930992385,7.09383056,140.97,140.93,0.68286138]
[1767930992985,7.54389901,140.97,140.93,0.68286138]
[1767930995904,0.45006845,140.97,140.93,0.68286138]
[1767930996714,0.45006845,140.97,140.93,2.85073487]
[1767930997003,0.45006845,140.97,140.93,9.94644371]
[1767930997518,0.45006845,140.97,140.93,72.04644371]
[1767930998299,0.45006845,140.97,140.94,0.71496417]
[1767930998815,0.45006845,140.97,140.94,0.65496417]
[1767930999218,0.71646578,140.96,140.93,62.1]
[1767930999584,7.80978195,140.98,140.93,71.36358719]
[1767930999788,9.97765544,140.98,140.93,71.36358719]